[Event "World Senior chT-65 2019"]
[Site "Rhodes"]
[Date "2019.04.20"]
[Round "5.5"]
[White "Birnboim, Nathan"]
[Black "Faibisovich, Vadim Z"]
[Result "1-0"]
[ECO "E08"]
[WhiteElo "2365"]
[BlackElo "2302"]
[Annotator "NA"]
[PlyCount "89"]
[EventDate "2019.04.16"]
[EventType "team-tourn"]
[EventCountry "GRE"]
[SourceTitle "playchess.com"]
[Source "ChessBase"]
[SourceQuality "1"]
[WhiteTeam "Israel"]
[BlackTeam "Russia"]
[WhiteTeamCountry "ISR"]
[BlackTeamCountry "RUS"]
[TimeControl "40/5400+30:1800+30"]

1. d4 {[%emt 0:00:00]} Nf6 {[%emt 0:00:00]} 2. c4 {[%emt 0:00:00]} e6 {[%emt 0:00:25]} 3. g3 {[%emt 0:00:02]} d5 {[%emt 0:01:08]} 4. Bg2 {[%emt 0:00:29]} Be7 {[%emt 0:06:53]} 5. Nf3 {[%emt 0:00:08]} O-O {[%emt 0:03:08]} 6. O-O {[%emt 0:00:04]} c6 {[%emt 0:02:08]} 7. Qc2 {[%emt 0:00:33]} Nbd7 {[%emt 0:02:26]} 8. b3 {[%emt 0:00:33]} b6 {[%emt 0:08:06]} 9. Rd1 {[%emt 0:00:34]} Bb7 {[%emt 0:03:15]} 10. Nc3 {[%emt 0:00:31]} Rc8 {[%emt 0:01:01]} 11. e4 {[%emt 0:00:24]} dxe4 {[%emt 0:03:09]} 12. Nxe4 {[%emt 0:00:10]} Nxe4 {[%emt 0:05:57]} 13. Qxe4 {[%emt 0:00:07]} Nf6 {[%emt 0:00:47]} 14. Qc2 {[%emt 0:00:15]} Qc7 {[%emt 0:13:02]} 15. Bf4 {[%emt 0:00:09]} Bd6 {[%emt 0:01:05]} 16. Bxd6 {[%emt 0:08:45]} Qxd6 {[%emt 0:00:09]} 17. c5 {[%emt 0:00:23]} Qc7 {[%emt 0:04:27]} 18. Ne5 {[%emt 0:03:27]} Rfd8 {[%emt 0:06:54]} 19. b4 {[%emt 0:04:50]} Nd5 {[%emt 0:03:28]} 20. Qb2 {[%emt 0:02:18]} Ba6 {[%emt 0:07:39]} 21. Rdc1 {[%emt 0:06:56]} f6 {[%emt 0:01:35]} 22. Nf3 {[%emt 0:05:10]} Bd3 {[%emt 0:01:31]} 23. Nd2 {[%emt 0:12:10]} Rb8 {[%emt 0:03:28]} 24. a3 {[%emt 0:10:30]} a5 {[%emt 0:01:25]} 25. Bxd5 {[%emt 0:14:14]} Rxd5 {[%emt 0:00:11]} 26. Qc3 {[%emt 0:00:29]} Bf5 {[%emt 0:02:08]} 27. cxb6 {[%emt 0:01:30]} Qxb6 {[%emt 0:01:27]} 28. Nc4 {[%emt 0:00:59]} Qxd4 {[%emt 0:06:25]} 29. Qxd4 {[%emt 0:00:41]} Rxd4 {[%emt 0:00:08]} 30. Nxa5 {[%emt 0:00:02]} Be4 {[%emt 0:00:43]} 31. Nxc6 {[%emt 0:00:40]} Bxc6 {[%emt 0:00:10]} 32. Rxc6 {[%emt 0:00:06]} e5 {[%emt 0:00:49]} 33. Rc7 {[%emt 0:00:46]} h5 {[%emt 0:01:44]} 34. h4 {[%emt 0:00:12]} Rg4 {[%emt 0:01:23]} 35. Rac1 {[%emt 0:03:24]} Kh7 {[%emt 0:00:36]} 36. R1c4 {[%emt 0:04:17]} e4 {[%emt 0:00:57]} 37. Re7 {[%emt 0:05:02]} f5 {[%emt 0:02:43]} 38. Re5 {[%emt 0:03:02]} Ra8 {[%emt 0:01:54]} 39. Rc3 {[%emt 0:00:54]} Rf8 {[%emt 0:02:21]} 40. b5 {[%emt 0:00:00]} f4 {[%emt 0:00:00]} 41. Rxh5+ {[%emt 0:00:46]} Kg6 {[%emt 0:01:41]} 42. Rg5+ {[%emt 0:00:26]} Rxg5 {[%emt 0:00:22]} 43. hxg5 {[%emt 0:00:06]} Kxg5 {[%emt 0:02:21]} 44. b6 {[%emt 0:01:29]} Rb8 {[%emt 0:03:05]} 45. Rb3 {[%emt 0:01:04]} 1-0

[Event "World Senior chT-65 2019"]
[Site "Rhodes"]
[Date "2019.04.20"]
[Round "5.6"]
[White "Karasev, Vladimir I"]
[Black "Berkovich, Mark A"]
[Result "1/2-1/2"]
[ECO "A03"]
[WhiteElo "2281"]
[BlackElo "2332"]
[Annotator "NA"]
[PlyCount "37"]
[EventDate "2019.04.16"]
[EventType "team-tourn"]
[EventCountry "GRE"]
[SourceTitle "playchess.com"]
[Source "ChessBase"]
[SourceQuality "1"]
[WhiteTeam "Russia"]
[BlackTeam "Israel"]
[WhiteTeamCountry "RUS"]
[BlackTeamCountry "ISR"]
[TimeControl "40/5400+30:1800+30"]

1. f4 {[%emt 0:00:00]} Nf6 {[%emt 0:00:07]} 2. Nf3 {[%emt 0:00:00]} d5 {[%emt 0:00:53]} 3. e3 {[%emt 0:00:00]} g6 {[%emt 0:03:10]} 4. b3 {[%emt 0:00:04]} Bg7 {[%emt 0:01:20]} 5. Bb2 {[%emt 0:00:05]} Bg4 {[%emt 0:00:22]} 6. Be2 {[%emt 0:00:52]} O-O {[%emt 0:06:03]} 7. O-O {[%emt 0:00:39]} c6 {[%emt 0:04:07]} 8. c4 {[%emt 0:05:07]} Nbd7 {[%emt 0:00:23]} 9. cxd5 {[%emt 0:04:26]} cxd5 {[%emt 0:01:41]} 10. Nd4 {[%emt 0:08:10]} Bxe2 {[%emt 0:00:29]} 11. Qxe2 {[%emt 0:00:02]} e6 {[%emt 0:05:07]} 12. Nc3 {[%emt 0:02:09]} Ne4 {[%emt 0:04:10]} 13. Nxe4 {[%emt 0:04:07]} dxe4 {[%emt 0:00:08]} 14. Qb5 {[%emt 0:07:03]} Nb6 {[%emt 0:01:37]} 15. Rac1 {[%emt 0:00:47]} Qd6 {[%emt 0:06:25]} 16. Qa5 {[%emt 0:05:46]} Rfd8 {[%emt 0:03:22]} 17. Rc2 {[%emt 0:12:41]} Nd5 {[%emt 0:01:31]} 18. Rc4 {[%emt 0:09:57]} a6 {[%emt 0:02:39]} 19. Ba3 {[%emt 0:18:00]} 1/2-1/2

[Event "World Senior chT-65 2019"]
[Site "Rhodes"]
[Date "2019.04.20"]
[Round "5.7"]
[White "Maryasin, Boris"]
[Black "Shushpanov, Vladimir"]
[Result "1-0"]
[ECO "B15"]
[WhiteElo "2297"]
[BlackElo "2180"]
[Annotator "NA"]
[PlyCount "49"]
[EventDate "2019.04.16"]
[EventType "team-tourn"]
[EventCountry "GRE"]
[SourceTitle "playchess.com"]
[Source "ChessBase"]
[SourceQuality "1"]
[WhiteTeam "Israel"]
[BlackTeam "Russia"]
[WhiteTeamCountry "ISR"]
[BlackTeamCountry "RUS"]
[TimeControl "40/5400+30:1800+30"]

1. e4 {[%emt 0:00:00]} g6 {[%emt 0:00:23]} 2. d4 {[%emt 0:00:02]} Bg7 {[%emt 0:00:02]} 3. Nc3 {[%emt 0:00:52]} c6 {[%emt 0:00:21]} 4. Be3 {[%emt 0:00:57]} d5 {[%emt 0:00:33]} 5. f3 {[%emt 0:01:21]} Nf6 {[%emt 0:02:10]} 6. e5 {[%emt 0:00:26]} Nfd7 {[%emt 0:00:10]} 7. f4 {[%emt 0:01:00]} e6 {[%emt 0:00:46]} 8. Nf3 {[%emt 0:00:18]} b6 {[%emt 0:00:13]} 9. h4 {[%emt 0:05:54]} h5 {[%emt 0:02:10]} 10. Ng5 {[%emt 0:00:35]} Ba6 {[%emt 0:01:39]} 11. Bxa6 {[%emt 0:00:59]} Nxa6 {[%emt 0:00:02]} 12. g4 {[%emt 0:00:27]} Nc7 {[%emt 0:04:13]} 13. f5 {[%emt 0:01:47]} hxg4 {[%emt 0:10:01]} 14. fxg6 {[%emt 0:02:31]} f5 {[%emt 0:01:50]} 15. h5 {[%emt 0:03:42]} Bxe5 {[%emt 0:10:55]} 16. dxe5 {[%emt 0:00:59]} Nxe5 {[%emt 0:00:13]} 17. g7 {[%emt 0:01:44]} Rg8 {[%emt 0:02:46]} 18. h6 {[%emt 0:00:33]} Qf6 {[%emt 0:01:20]} 19. h7 {[%emt 0:01:23]} Qxg7 {[%emt 0:00:53]} 20. hxg8=Q+ {[%emt 0:00:28]} Qxg8 {[%emt 0:00:03]} 21. Qd4 {[%emt 0:01:57]} Qxg5 {[%emt 0:01:27]} 22. Qxe5 {[%emt 0:00:11]} Qe7 {[%emt 0:00:41]} 23. Rh8+ {[%emt 0:01:33]} Kd7 {[%emt 0:00:03]} 24. Rxa8 {[%emt 0:00:29]} Nxa8 {[%emt 0:00:06]} 25. O-O-O {[%emt 0:01:12]} 1-0

[Event "World Senior chT-65 2019"]
[Site "Rhodes"]
[Date "2019.04.20"]
[Round "5.8"]
[White "Blechzin, Igor"]
[Black "Lederman, Leon"]
[Result "1-0"]
[ECO "A12"]
[WhiteElo "2210"]
[BlackElo "2281"]
[Annotator "NA"]
[PlyCount "105"]
[EventDate "2019.04.16"]
[EventType "team-tourn"]
[EventCountry "GRE"]
[SourceTitle "playchess.com"]
[Source "ChessBase"]
[SourceQuality "1"]
[WhiteTeam "Russia"]
[BlackTeam "Israel"]
[WhiteTeamCountry "RUS"]
[BlackTeamCountry "ISR"]
[TimeControl "40/5400+30:1800+30"]

1. c4 {[%emt 0:00:00]} c6 {[%emt 0:00:00]} 2. Nf3 {[%emt 0:00:43]} d5 {[%emt 0:00:00]} 3. b3 {[%emt 0:01:25]} Bf5 {[%emt 0:00:04]} 4. Bb2 {[%emt 0:00:44]} e6 {[%emt 0:00:07]} 5. g3 {[%emt 0:00:18]} Nf6 {[%emt 0:00:19]} 6. Bg2 {[%emt 0:00:43]} Be7 {[%emt 0:00:07]} 7. d3 {[%emt 0:00:19]} h6 {[%emt 0:00:05]} 8. O-O {[%emt 0:00:19]} O-O {[%emt 0:00:03]} 9. Nbd2 {[%emt 0:00:36]} a5 {[%emt 0:00:11]} 10. a3 {[%emt 0:05:37]} Nbd7 {[%emt 0:01:14]} 11. Rc1 {[%emt 0:03:22]} Qb6 {[%emt 0:05:12]} 12. Rc2 {[%emt 0:04:12]} Rfe8 {[%emt 0:04:16]} 13. Qa1 {[%emt 0:00:55]} Bf8 {[%emt 0:01:53]} 14. Ne5 {[%emt 0:02:09]} Rad8 {[%emt 0:12:37]} 15. Nxd7 {[%emt 0:09:30]} Nxd7 {[%emt 0:00:05]} 16. Bc3 {[%emt 0:05:05]} Qa6 {[%emt 0:07:55]} 17. b4 {[%emt 0:07:32]} a4 {[%emt 0:02:30]} 18. Qb2 {[%emt 0:07:31]} dxc4 {[%emt 0:06:47]} 19. Nxc4 {[%emt 0:00:11]} f6 {[%emt 0:01:02]} 20. Rb1 {[%emt 0:01:32]} Qb5 {[%emt 0:00:25]} 21. Bd4 {[%emt 0:02:45]} e5 {[%emt 0:02:34]} 22. Be3 {[%emt 0:00:05]} e4 {[%emt 0:02:42]} 23. Qa2 {[%emt 0:10:19]} Qd5 {[%emt 0:20:56]} 24. dxe4 {[%emt 0:10:21]} Bxe4 {[%emt 0:00:05]} 25. Bxe4 {[%emt 0:00:06]} Rxe4 {[%emt 0:00:08]} 26. Na5 {[%emt 0:00:06]} Qxa2 {[%emt 0:03:46]} 27. Rxa2 {[%emt 0:00:01]} Rb8 {[%emt 0:00:56]} 28. Bf4 {[%emt 0:06:50]} Rbe8 {[%emt 0:02:07]} 29. Kf1 {[%emt 0:01:36]} g5 {[%emt 0:01:28]} 30. Be3 {[%emt 0:01:48]} Rb8 {[%emt 0:00:22]} 31. Rd1 {[%emt 0:00:51]} Re7 {[%emt 0:01:56]} 32. Rad2 {[%emt 0:00:48]} Ne5 {[%emt 0:03:06]} 33. Bd4 {[%emt 0:02:52]} Kf7 {[%emt 0:01:43]} 34. Bxe5 {[%emt 0:03:25]} fxe5 {[%emt 0:00:39]} 35. e4 {[%emt 0:01:14]} Ke8 {[%emt 0:00:20]} 36. Nc4 {[%emt 0:00:34]} Re6 {[%emt 0:03:01]} 37. Nb6 {[%emt 0:04:52]} c5 {[%emt 0:01:58]} 38. Nd5 {[%emt 0:00:28]} Rc8 {[%emt 0:01:21]} 39. b5 {[%emt 0:00:32]} c4 {[%emt 0:00:22]} 40. Rc2 {[%emt 0:00:00]} Rc5 {[%emt 0:00:00]} 41. Rdc1 {[%emt 0:07:22]} Bd6 {[%emt 0:03:58]} 42. Rxc4 {[%emt 0:00:22]} Rxb5 {[%emt 0:00:14]} 43. Rxa4 {[%emt 0:00:36]} Rb3 {[%emt 0:00:18]} 44. Nc7+ {[%emt 0:00:41]} Bxc7 {[%emt 0:00:15]} 45. Rxc7 {[%emt 0:00:05]} Re7 {[%emt 0:02:56]} 46. Rc8+ {[%emt 0:04:10]} Kf7 {[%emt 0:00:06]} 47. Raa8 {[%emt 0:00:33]} Kf6 {[%emt 0:10:45]} 48. Rh8 {[%emt 0:01:35]} Kg6 {[%emt 0:02:41]} 49. Kg2 {[%emt 0:00:53]} Rf7 {[%emt 0:08:34]} 50. Rag8+ {[%emt 0:01:47]} Rg7 {[%emt 0:00:34]} 51. Re8 {[%emt 0:00:37]} Rf7 {[%emt 0:02:27]} 52. Re6+ {[%emt 0:01:06]} Kg7 {[%emt 0:00:39]} 53. Rexh6 {[%emt 0:01:08]} 1-0

[Event "World Senior chT-65 2019"]
[Site "Rhodes"]
[Date "2019.04.20"]
[Round "5.9"]
[White "Karason, Askell O"]
[Black "Renman, Nils-Gustaf"]
[Result "1/2-1/2"]
[ECO "D44"]
[WhiteElo "2252"]
[BlackElo "2358"]
[Annotator "NA"]
[PlyCount "55"]
[EventDate "2019.04.16"]
[EventType "team-tourn"]
[EventCountry "GRE"]
[SourceTitle "playchess.com"]
[Source "ChessBase"]
[SourceQuality "1"]
[WhiteTeam "Iceland"]
[BlackTeam "Sweden"]
[WhiteTeamCountry "ISL"]
[BlackTeamCountry "SWE"]
[TimeControl "40/5400+30:1800+30"]

1. d4 {[%emt 0:00:00]} d5 {[%emt 0:00:00]} 2. c4 {[%emt 0:00:00]} c6 {[%emt 0:00:00]} 3. Nf3 {[%emt 0:00:14]} Nf6 {[%emt 0:01:55]} 4. Nc3 {[%emt 0:00:16]} e6 {[%emt 0:00:11]} 5. Bg5 {[%emt 0:00:18]} dxc4 {[%emt 0:00:19]} 6. e4 {[%emt 0:00:40]} b5 {[%emt 0:00:06]} 7. e5 {[%emt 0:00:21]} h6 {[%emt 0:00:07]} 8. Bh4 {[%emt 0:00:05]} g5 {[%emt 0:00:05]} 9. Nxg5 {[%emt 0:00:10]} hxg5 {[%emt 0:00:07]} 10. Bxg5 {[%emt 0:00:06]} Nbd7 {[%emt 0:00:09]} 11. g3 {[%emt 0:00:13]} Bb7 {[%emt 0:00:09]} 12. Bg2 {[%emt 0:00:18]} Qb6 {[%emt 0:00:08]} 13. exf6 {[%emt 0:00:08]} O-O-O {[%emt 0:00:13]} 14. O-O {[%emt 0:00:07]} c5 {[%emt 0:00:32]} 15. d5 {[%emt 0:00:17]} b4 {[%emt 0:00:06]} 16. Rb1 {[%emt 0:00:11]} Qa6 {[%emt 0:00:41]} 17. dxe6 {[%emt 0:01:51]} Bxg2 {[%emt 0:00:26]} 18. e7 {[%emt 0:00:18]} Bxf1 {[%emt 0:00:52]} 19. Qd5 {[%emt 0:00:51]} Bxe7 {[%emt 0:05:35]} 20. fxe7 {[%emt 0:04:34]} Bd3 {[%emt 0:01:13]} 21. exd8=Q+ {[%emt 0:04:58]} Rxd8 {[%emt 0:00:14]} 22. Ne4 {[%emt 0:00:14]} Bxb1 {[%emt 0:28:43]} 23. Nd6+ {[%emt 0:01:39]} Kc7 {[%emt 0:00:45]} 24. Bf4 {[%emt 0:14:47]} Kb6 {[%emt 0:11:42]} 25. Nxc4+ {[%emt 0:02:41]} Kb5 {[%emt 0:02:36]} 26. Nd6+ {[%emt 0:03:38]} Kb6 {[%emt 0:03:39]} 27. Nc4+ {[%emt 0:06:43]} Kb5 {[%emt 0:00:10]} 28. Nd6+ {[%emt 0:00:07]} 1/2-1/2

[Event "World Senior chT-65 2019"]
[Site "Rhodes"]
[Date "2019.04.20"]
[Round "5.10"]
[White "Uddenfeldt, Dan"]
[Black "Gudmundsson, Kristjan"]
[Result "1/2-1/2"]
[ECO "A56"]
[WhiteElo "2339"]
[BlackElo "2268"]
[Annotator "NA"]
[PlyCount "107"]
[EventDate "2019.04.16"]
[EventType "team-tourn"]
[EventCountry "GRE"]
[SourceTitle "playchess.com"]
[Source "ChessBase"]
[SourceQuality "1"]
[WhiteTeam "Sweden"]
[BlackTeam "Iceland"]
[WhiteTeamCountry "SWE"]
[BlackTeamCountry "ISL"]
[TimeControl "40/5400+30:1800+30"]

1. d4 {[%emt 0:01:13]} Nf6 {[%emt 0:01:00]} 2. c4 {[%emt 0:00:00]} c5 {[%emt 0:00:07]} 3. d5 {[%emt 0:00:18]} e5 {[%emt 0:00:04]} 4. Nc3 {[%emt 0:01:06]} d6 {[%emt 0:02:21]} 5. e4 {[%emt 0:00:57]} Be7 {[%emt 0:04:35]} 6. Bd2 {[%emt 0:05:32]} Nbd7 {[%emt 0:00:00]} 7. Bd3 {[%emt 0:02:04]} Nf8 {[%emt 0:01:41]} 8. g3 {[%emt 0:02:27]} Ng6 {[%emt 0:05:05]} 9. h4 {[%emt 0:00:34]} h5 {[%emt 0:02:21]} 10. Nh3 {[%emt 0:06:25]} Bg4 {[%emt 0:03:18]} 11. f3 {[%emt 0:01:11]} Bd7 {[%emt 0:00:02]} 12. Ng5 {[%emt 0:04:03]} Nf8 {[%emt 0:08:00]} 13. Qe2 {[%emt 0:17:10]} N6h7 {[%emt 0:03:24]} 14. f4 {[%emt 0:00:01]} Bg4 {[%emt 0:02:44]} 15. Qf2 {[%emt 0:00:56]} Bf6 {[%emt 0:15:30]} 16. Be2 {[%emt 0:02:47]} Bxe2 {[%emt 0:06:29]} 17. Qxe2 {[%emt 0:01:12]} g6 {[%emt 0:00:12]} 18. Nf3 {[%emt 0:04:10]} Nd7 {[%emt 0:01:05]} 19. f5 {[%emt 0:04:24]} Qe7 {[%emt 0:09:10]} 20. O-O-O {[%emt 0:01:04]} O-O-O {[%emt 0:00:00]} 21. fxg6 {[%emt 0:09:47]} fxg6 {[%emt 0:00:00]} 22. Rdg1 {[%emt 0:04:04]} Bg7 {[%emt 0:03:30]} 23. g4 {[%emt 0:00:00]} Nhf6 {[%emt 0:04:30]} 24. g5 {[%emt 0:04:44]} Ng4 {[%emt 0:01:21]} 25. Kc2 {[%emt 0:01:14]} Rhf8 {[%emt 0:00:38]} 26. a3 {[%emt 0:00:38]} Rf7 {[%emt 0:00:25]} 27. b4 {[%emt 0:00:26]} Rdf8 {[%emt 0:01:03]} 28. Rh3 {[%emt 0:02:59]} Kb8 {[%emt 0:00:00]} 29. Kb3 {[%emt 0:01:52]} Rc8 {[%emt 0:00:25]} 30. Rc1 {[%emt 0:02:29]} Qe8 {[%emt 0:02:31]} 31. Nd1 {[%emt 0:04:40]} Bf8 {[%emt 0:02:40]} 32. Ne1 {[%emt 0:00:47]} Be7 {[%emt 0:00:26]} 33. Nd3 {[%emt 0:05:41]} Nb6 {[%emt 0:06:39]} 34. N1b2 {[%emt 0:00:00]} Qf8 {[%emt 0:00:17]} 35. Be1 {[%emt 0:00:00]} Nd7 {[%emt 0:01:23]} 36. Bc3 {[%emt 0:00:00]} Ka8 {[%emt 0:01:38]} 37. Rc2 {[%emt 0:04:06]} Bd8 {[%emt 0:02:06]} 38. Rg3 {[%emt 0:00:00]} Qe7 {[%emt 0:02:41]} 39. Bd2 {[%emt 0:00:00]} Bc7 {[%emt 0:03:33]} 40. Na4 {[%emt 0:00:00]} Rcf8 {[%emt 0:00:00]} 41. Be1 {[%emt 0:00:32]} Kb8 {[%emt 0:02:34]} 42. Ka2 {[%emt 0:01:10]} Nb6 {[%emt 0:01:00]} 43. Nab2 {[%emt 0:02:17]} Nd7 {[%emt 0:00:21]} 44. Nd1 {[%emt 0:00:41]} Bb6 {[%emt 0:00:32]} 45. b5 {[%emt 0:03:24]} Qd8 {[%emt 0:00:38]} 46. Qd2 {[%emt 0:02:42]} Rf3 {[%emt 0:00:37]} 47. Rxf3 {[%emt 0:00:41]} Rxf3 {[%emt 0:00:29]} 48. Qe2 {[%emt 0:00:52]} Rf7 {[%emt 0:02:21]} 49. Ne3 {[%emt 0:03:17]} Nxe3 {[%emt 0:00:00]} 50. Qxe3 {[%emt 0:00:37]} Qf8 {[%emt 0:00:00]} 51. Rf2 {[%emt 0:00:00]} Rxf2+ {[%emt 0:00:10]} 52. Qxf2 {[%emt 0:00:00]} Qxf2+ {[%emt 0:00:20]} 53. Nxf2 {[%emt 0:00:03]} Bd8 {[%emt 0:00:25]} 54. Kb3 {[%emt 0:00:37]} 1/2-1/2

[Event "World Senior chT-65 2019"]
[Site "Rhodes"]
[Date "2019.04.20"]
[Round "5.11"]
[White "Viglundsson, Bjorgvin"]
[Black "Hammar, Bengt"]
[Result "1/2-1/2"]
[ECO "D91"]
[WhiteElo "2170"]
[BlackElo "2206"]
[Annotator "NA"]
[PlyCount "73"]
[EventDate "2019.04.16"]
[EventType "team-tourn"]
[EventCountry "GRE"]
[SourceTitle "playchess.com"]
[Source "ChessBase"]
[SourceQuality "1"]
[WhiteTeam "Iceland"]
[BlackTeam "Sweden"]
[WhiteTeamCountry "ISL"]
[BlackTeamCountry "SWE"]
[TimeControl "40/5400+30:1800+30"]

1. d4 {[%emt 0:00:00]} Nf6 {[%emt 0:00:08]} 2. c4 {[%emt 0:00:00]} g6 {[%emt 0:00:53]} 3. Nc3 {[%emt 0:00:16]} d5 {[%emt 0:00:12]} 4. Nf3 {[%emt 0:00:20]} Bg7 {[%emt 0:00:15]} 5. Bg5 {[%emt 0:00:26]} Ne4 {[%emt 0:03:28]} 6. Bh4 {[%emt 0:00:30]} c5 {[%emt 0:03:54]} 7. cxd5 {[%emt 0:00:49]} Nxc3 {[%emt 0:00:09]} 8. bxc3 {[%emt 0:00:06]} cxd4 {[%emt 0:00:29]} 9. cxd4 {[%emt 0:00:02]} Qxd5 {[%emt 0:00:36]} 10. e3 {[%emt 0:00:19]} Nc6 {[%emt 0:01:08]} 11. Be2 {[%emt 0:00:22]} Qa5+ {[%emt 0:06:50]} 12. Qd2 {[%emt 0:00:15]} Qxd2+ {[%emt 0:00:20]} 13. Kxd2 {[%emt 0:00:05]} e6 {[%emt 0:01:28]} 14. Rhc1 {[%emt 0:00:59]} Bd7 {[%emt 0:03:20]} 15. Rab1 {[%emt 0:01:39]} b6 {[%emt 0:01:47]} 16. Ba6 {[%emt 0:01:32]} Na5 {[%emt 0:02:25]} 17. Rc7 {[%emt 0:01:44]} f6 {[%emt 0:04:07]} 18. Rbc1 {[%emt 0:02:01]} g5 {[%emt 0:04:36]} 19. Bg3 {[%emt 0:02:03]} Bf8 {[%emt 0:00:35]} 20. h4 {[%emt 0:07:07]} g4 {[%emt 0:04:31]} 21. Ne1 {[%emt 0:00:14]} Be7 {[%emt 0:00:36]} 22. Be2 {[%emt 0:01:35]} Bb4+ {[%emt 0:02:04]} 23. Kd1 {[%emt 0:00:22]} Ba4+ {[%emt 0:01:02]} 24. Nc2 {[%emt 0:00:14]} h5 {[%emt 0:03:01]} 25. Bd3 {[%emt 0:01:55]} Ba3 {[%emt 0:02:42]} 26. Rb1 {[%emt 0:00:43]} Be7 {[%emt 0:06:13]} 27. Ke2 {[%emt 0:09:00]} Bc6 {[%emt 0:03:44]} 28. Bb5 {[%emt 0:03:49]} Bxb5+ {[%emt 0:02:00]} 29. Rxb5 {[%emt 0:01:35]} Bd8 {[%emt 0:00:52]} 30. Rc3 {[%emt 0:07:14]} Kd7 {[%emt 0:01:09]} 31. d5 {[%emt 0:04:36]} e5 {[%emt 0:01:15]} 32. e4 {[%emt 0:00:44]} Be7 {[%emt 0:03:11]} 33. Ne3 {[%emt 0:11:16]} Rhc8 {[%emt 0:00:32]} 34. Rxc8 {[%emt 0:02:46]} Rxc8 {[%emt 0:00:07]} 35. Rb2 {[%emt 0:04:48]} Nb7 {[%emt 0:13:10]} 36. Rc2 {[%emt 0:05:00]} Rxc2+ {[%emt 0:01:38]} 37. Nxc2 {[%emt 0:00:04]} 1/2-1/2

[Event "World Senior chT-65 2019"]
[Site "Rhodes"]
[Date "2019.04.20"]
[Round "5.12"]
[White "Hedin, Gunnar"]
[Black "Halldorsson, Bragi"]
[Result "0-1"]
[ECO "A34"]
[WhiteElo "2195"]
[BlackElo "2112"]
[Annotator "NA"]
[PlyCount "122"]
[EventDate "2019.04.16"]
[EventType "team-tourn"]
[EventCountry "GRE"]
[SourceTitle "playchess.com"]
[Source "ChessBase"]
[SourceQuality "1"]
[WhiteTeam "Sweden"]
[BlackTeam "Iceland"]
[WhiteTeamCountry "SWE"]
[BlackTeamCountry "ISL"]
[TimeControl "40/5400+30:1800+30"]

1. c4 {[%emt 0:00:00]} c5 {[%emt 0:00:03]} 2. Nf3 {[%emt 0:01:24]} Nf6 {[%emt 0:00:25]} 3. g3 {[%emt 0:01:07]} Nc6 {[%emt 0:00:22]} 4. Bg2 {[%emt 0:00:31]} d5 {[%emt 0:00:17]} 5. cxd5 {[%emt 0:01:44]} Nxd5 {[%emt 0:00:17]} 6. O-O {[%emt 0:01:34]} e5 {[%emt 0:00:43]} 7. Nc3 {[%emt 0:00:57]} Nc7 {[%emt 0:00:08]} 8. d3 {[%emt 0:01:06]} Be7 {[%emt 0:00:28]} 9. Nd2 {[%emt 0:08:53]} Be6 {[%emt 0:06:57]} 10. Nc4 {[%emt 0:03:24]} Nd5 {[%emt 0:01:39]} 11. f4 {[%emt 0:14:02]} exf4 {[%emt 0:01:08]} 12. gxf4 {[%emt 0:02:03]} f6 {[%emt 0:02:51]} 13. f5 {[%emt 0:14:06]} Bf7 {[%emt 0:00:13]} 14. Qe1 {[%emt 0:02:53]} Nd4 {[%emt 0:04:41]} 15. Qf2 {[%emt 0:08:02]} Qd7 {[%emt 0:04:46]} 16. e3 {[%emt 0:03:56]} Nc6 {[%emt 0:00:33]} 17. Be4 {[%emt 0:10:28]} Rd8 {[%emt 0:06:19]} 18. a3 {[%emt 0:03:04]} Nxc3 {[%emt 0:05:11]} 19. bxc3 {[%emt 0:00:25]} Bd5 {[%emt 0:01:29]} 20. Bxd5 {[%emt 0:04:15]} Qxd5 {[%emt 0:00:19]} 21. Rd1 {[%emt 0:04:13]} O-O {[%emt 0:05:52]} 22. Rd2 {[%emt 0:00:29]} b5 {[%emt 0:05:21]} 23. e4 {[%emt 0:00:12]} Qf7 {[%emt 0:00:16]} 24. Ne3 {[%emt 0:00:31]} Bd6 {[%emt 0:01:39]} 25. Rb1 {[%emt 0:01:05]} a6 {[%emt 0:00:22]} 26. Nd5 {[%emt 0:02:48]} Rfe8 {[%emt 0:01:07]} 27. Rd1 {[%emt 0:01:35]} c4 {[%emt 0:02:17]} 28. dxc4 {[%emt 0:01:19]} Rxe4 {[%emt 0:00:42]} 29. Bf4 {[%emt 0:03:18]} Bxf4 {[%emt 0:02:15]} 30. Nxf4 {[%emt 0:00:05]} Rxd1+ {[%emt 0:01:59]} 31. Rxd1 {[%emt 0:00:03]} Qxc4 {[%emt 0:00:36]} 32. Nh5 {[%emt 0:00:38]} Rg4+ {[%emt 0:04:10]} 33. Ng3 {[%emt 0:00:03]} h5 {[%emt 0:00:13]} 34. Qe3 {[%emt 0:00:54]} Ne5 {[%emt 0:01:17]} 35. Rd4 {[%emt 0:00:17]} Rxd4 {[%emt 0:00:55]} 36. cxd4 {[%emt 0:00:17]} Qxd4 {[%emt 0:00:10]} 37. Qxd4 {[%emt 0:00:02]} Nf3+ {[%emt 0:00:17]} 38. Kf2 {[%emt 0:00:00]} Nxd4 {[%emt 0:00:15]} 39. Ke3 {[%emt 0:01:59]} Nc2+ {[%emt 0:00:12]} 40. Kd3 {[%emt 0:00:08]} Nxa3 {[%emt 0:00:10]} 41. Nxh5 {[%emt 0:01:16]} Nc4 {[%emt 0:01:36]} 42. Nf4 {[%emt 0:04:27]} Nd6 {[%emt 0:02:23]} 43. Nd5 {[%emt 0:00:27]} a5 {[%emt 0:01:15]} 44. Kd4 {[%emt 0:00:32]} a4 {[%emt 0:06:19]} 45. Kc5 {[%emt 0:03:04]} a3 {[%emt 0:00:48]} 46. Nb4 {[%emt 0:00:40]} Nxf5 {[%emt 0:00:18]} 47. Kxb5 {[%emt 0:00:24]} Nd4+ {[%emt 0:02:51]} 48. Kc4 {[%emt 0:01:02]} Nf3 {[%emt 0:00:17]} 49. Kb3 {[%emt 0:01:53]} Nxh2 {[%emt 0:00:10]} 50. Kxa3 {[%emt 0:00:05]} g5 {[%emt 0:01:53]} 51. Nd5 {[%emt 0:01:59]} Kf7 {[%emt 0:00:36]} 52. Kb3 {[%emt 0:00:05]} Ke6 {[%emt 0:00:15]} 53. Kc4 {[%emt 0:00:23]} Ke5 {[%emt 0:00:31]} 54. Nc3 {[%emt 0:01:41]} f5 {[%emt 0:03:43]} 55. Kd3 {[%emt 0:00:42]} Kf4 {[%emt 0:02:23]} 56. Ne2+ {[%emt 0:01:48]} Ke5 {[%emt 0:04:02]} 57. Ke3 {[%emt 0:01:13]} f4+ {[%emt 0:00:14]} 58. Kf2 {[%emt 0:00:15]} Ng4+ {[%emt 0:00:19]} 59. Kf3 {[%emt 0:00:56]} Nf6 {[%emt 0:00:23]} 60. Kg2 {[%emt 0:03:56]} g4 {[%emt 0:02:34]} 61. Ng1 {[%emt 0:00:19]} Ne4 {[%emt 0:02:15]} 0-1